bitfinex/quotes_BTCUSD_20260311
["timestamp","ask_amount","ask_price","bid_price","bid_amount"]
[1773188055641,0.00022001,70106.0,70087.0,0.07168547]
[1773188055642,0.01392039,70103.0,70087.0,0.07168547]
[1773188055787,0.00144,70102.0,70087.0,0.07168547]
[1773188056215,0.00144,70101.0,70087.0,0.07168547]
[1773188056662,0.01392039,70100.0,70087.0,0.07168547]
[1773188056852,0.01392039,70100.0,70087.0,0.07171252]
[1773188057831,0.01392039,70100.0,70087.0,0.00037327]
[1773188058214,0.01392039,70098.0,70087.0,0.00037327]
[1773188059678,0.01288901,70097.0,70087.0,0.00037327]
[1773188059881,0.01288901,70097.0,70080.0,0.11283328]
[1773188059882,0.01288901,70097.0,70078.0,0.18418214]
[1773188060091,0.01288901,70097.0,70078.0,0.00037364]
[1773188060626,0.01288901,70097.0,70078.0,0.07172267]
[1773188060848,0.00144,70096.0,70080.0,0.16284246]
[1773188061043,0.00144,70095.0,70080.0,0.16284246]
[1773188061239,0.01267859,70093.0,70078.0,0.07172267]
[1773188061449,0.00144,70092.0,70078.0,0.07172267]
[1773188062260,0.00144,70092.0,70078.0,0.18455595]
[1773188062483,0.01267859,70093.0,70078.0,0.18455595]
[1773188062670,0.00144,70091.0,70078.0,0.18455595]
[1773188064467,0.00144,70091.0,70078.0,0.18475595]
[1773188065068,0.00144,70091.0,70079.0,0.11283328]
[1773188065603,0.00144,70091.0,70080.0,0.07134703]
[1773188066228,0.00144,70091.0,70080.0,0.18418031]
[1773188067753,0.00144,70091.0,70080.0,0.07134703]
[1773188068128,0.00144,70091.0,70080.0,0.18418031]
[1773188068981,0.00144,70091.0,70080.0,0.07134703]
[1773188069342,0.00144,70091.0,70080.0,0.18418031]
[1773188069861,0.00144,70091.0,70080.0,0.07134703]
[1773188070183,0.01325574,70091.0,70080.0,0.07134703]
[1773188070996,0.01325574,70091.0,70080.0,0.18418031]
[1773188072201,0.01325574,70091.0,70081.0,0.11283328]
[1773188073843,0.00144,70091.0,70084.0,0.11283328]
[1773188074209,0.00144,70091.0,70085.0,0.11283328]
[1773188074563,0.00144,70092.0,70085.0,0.11283328]
[1773188075174,0.00144,70092.0,70082.0,0.07134499]
[1773188075175,0.00144,70092.0,70086.0,0.11283328]
[1773188075981,0.00144,70091.0,70087.0,0.0713399]
[1773188076181,0.00144,70090.0,70087.0,0.0713399]
[1773188076384,0.00144,70089.0,70086.0,0.18417359]
[1773188076557,0.00144,70088.0,70085.0,0.07134104]
[1773188076770,0.00144,70087.0,70086.0,0.0713406]
[1773188077171,0.00144,70087.0,70086.0,0.18417388]
[1773188078174,0.01172419,70093.0,70086.0,0.18417388]
[1773188078175,0.01172419,70093.0,70086.0,0.0713406]
[1773188078381,0.00144,70092.0,70088.0,0.11304666]
[1773188078720,0.00144,70091.0,70090.0,0.11304666]
[1773188079083,0.01172419,70099.0,70090.0,0.11304666]
[1773188079423,0.00144,70098.0,70090.0,0.11304666]
[1773188079624,0.00144,70098.0,70091.0,0.11304666]
[1773188079832,0.01155676,70097.0,70091.0,0.11304666]
[1773188080464,0.01155676,70097.0,70091.0,0.18438234]
[1773188080633,0.00144,70096.0,70091.0,0.18438234]
[1773188080837,0.01296866,70096.0,70091.0,0.18438234]
[1773188081042,0.01296866,70096.0,70086.0,0.16924993]
[1773188081254,0.07277074,70096.0,70082.0,0.16924993]
[1773188081459,0.07277074,70096.0,70081.0,0.0002]
[1773188081460,0.01152866,70095.0,70081.0,0.24079578]
[1773188081654,0.01152866,70095.0,70081.0,0.07154585]
[1773188081855,0.01152866,70095.0,70081.0,0.07154576]
[1773188082059,0.01152866,70093.0,70075.0,0.07158206]
[1773188082257,0.01152866,70093.0,70074.0,0.07135301]
[1773188082459,0.01152866,70093.0,70074.0,0.00037398]
[1773188082713,0.01152866,70093.0,70073.0,0.07155359]
[1773188082882,0.01152866,70093.0,70073.0,0.00057463]
[1773188084234,0.07133481,70092.0,70073.0,0.00057463]
[1773188084398,0.01152866,70091.0,70073.0,0.00057463]
[1773188085215,0.01152866,70091.0,70069.0,0.07171846]
[1773188085416,0.01190235,70091.0,70069.0,0.07171846]
[1773188085617,0.05432048,70090.0,70069.0,0.07171846]
[1773188085820,0.01226112,70089.0,70081.0,0.0002]
[1773188086026,0.05432048,70090.0,70081.0,0.0002]
[1773188086027,0.01226112,70087.0,70081.0,0.0002]
[1773188086403,0.01226112,70087.0,70069.0,0.0003605]
[1773188086404,0.01226112,70085.0,70069.0,0.0003605]
[1773188086998,0.01226112,70085.0,70068.0,0.00562]
[1773188087409,0.01230263,70083.0,70068.0,0.07697914]
[1773188087904,0.01230263,70081.0,70068.0,0.07697914]
[1773188088510,0.01212282,70080.0,70068.0,0.07697914]
[1773188090651,0.07134712,70080.0,70075.0,0.0004]
[1773188090949,0.01190527,70079.0,70075.0,0.0004]
[1773188091150,0.00144,70078.0,70075.0,0.0004]
[1773188091364,0.01190527,70077.0,70075.0,0.0004]
[1773188092594,0.01190527,70077.0,70068.0,0.00562]
[1773188093074,0.01190527,70077.0,70068.0,0.07697913]
[1773188093454,0.01190527,70077.0,70068.0,0.00562]
[1773188094569,0.01190527,70077.0,70068.0,0.07697907]
[1773188094799,0.01190527,70077.0,70068.0,0.07697908]
[1773188095220,0.01190527,70077.0,70075.0,0.0002]
[1773188097851,0.01190527,70077.0,70066.0,0.0002]
[1773188097852,0.01134797,70076.0,70066.0,0.0002]
[1773188098066,0.01134797,70076.0,70059.0,0.0002]
[1773188098067,0.01134797,70076.0,70063.0,0.07136429]
[1773188098994,0.01134797,70076.0,70064.0,0.07136324]
[1773188099397,0.01311631,70075.0,70061.0,0.07136537]
[1773188099598,0.01311631,70075.0,70063.0,0.07136423]
[1773188100005,0.01311631,70075.0,70062.0,0.07136479]
[1773188100208,0.01311631,70075.0,70061.0,0.07136537]
[1773188100408,0.01311631,70075.0,70059.0,0.0002]
[1773188100614,0.01311631,70075.0,70059.0,0.07156767]
[1773188100826,0.01311631,70075.0,70060.0,0.07136728]
[1773188101029,0.01311631,70075.0,70062.0,0.07136522]
[1773188101441,0.01311732,70073.0,70061.0,0.07136636]
[1773188101687,0.01311732,70073.0,70060.0,0.07136731]
[1773188101892,0.01311732,70073.0,70059.0,0.07156793]
[1773188102090,0.07135314,70074.0,70057.0,0.07157042]
[1773188102091,0.01311732,70071.0,70057.0,0.07157042]
[1773188103480,0.07135708,70071.0,70057.0,0.06857042]
[1773188103680,0.0131212,70070.0,70057.0,0.06857042]
[1773188104089,0.0131212,70070.0,70057.0,0.06877042]
[1773188104925,0.0131212,70070.0,70057.0,0.0002]
[1773188105704,0.07135762,70070.0,70058.0,0.07136943]
[1773188105908,0.01312118,70069.0,70057.0,0.07156965]
[1773188106131,0.01456118,70069.0,70057.0,0.07156965]
[1773188107147,0.01493464,70069.0,70057.0,0.0002]
[1773188107660,0.07135925,70068.0,70057.0,0.0002]
[1773188107806,0.01312117,70067.0,70057.0,0.0002]
[1773188108823,0.01312117,70067.0,70050.0,0.00043]
[1773188109987,0.0122262,70065.0,70050.0,0.00043]
[1773188110331,0.0122262,70065.0,70045.0,0.07158185]
[1773188111468,0.0122262,70065.0,70045.0,0.08158185]
[1773188111668,0.0132262,70065.0,70045.0,0.08158185]
[1773188111873,0.0122262,70065.0,70045.0,0.08158185]
[1773188112078,0.01131209,70063.0,70045.0,0.08158185]
[1773188112303,0.01131209,70061.0,70045.0,0.08158185]
[1773188113142,0.01131209,70061.0,70045.0,0.08158198]
[1773188113505,0.01131209,70061.0,70045.0,0.08158251]
[1773188114244,0.01131209,70059.0,70045.0,0.08158251]
[1773188116401,0.01131209,70057.0,70044.0,0.0002]
[1773188117100,0.01131209,70057.0,70043.0,0.0002]
[1773188117702,0.00144,70056.0,70043.0,0.0002]
[1773188117891,0.01131209,70055.0,70043.0,0.0002]
[1773188119171,0.01131209,70053.0,70043.0,0.0002]
[1773188119782,0.00144,70052.0,70043.0,0.0002]
[1773188120891,0.00955906,70051.0,70043.0,0.0002]
[1773188121568,0.07137758,70050.0,70043.0,0.0002]
[1773188121961,0.08093569,70051.0,70043.0,0.0002]
[1773188125354,0.2847771,70089.0,70043.0,0.0002]
[1773188125355,0.18525093,70074.0,70043.0,0.07158411]
[1773188125506,0.00023,70075.0,70043.0,0.07158411]
[1773188125507,0.0092424,70066.0,70043.0,0.07158411]
[1773188125736,0.0092424,70066.0,70050.0,0.0543631]
[1773188125939,0.07136469,70063.0,70051.0,0.07137656]
[1773188126181,0.0715847,70063.0,70051.0,0.07137656]
[1773188126387,0.00022001,70063.0,70051.0,0.06879179]
[1773188126579,0.01054063,70062.0,70051.0,0.06879179]
[1773188127942,0.00022001,70063.0,70051.0,0.06879179]
[1773188128100,0.00144,70061.0,70052.0,0.14065544]
[1773188128297,0.00144,70060.0,70052.0,0.14065544]
[1773188128915,0.00144,70060.0,70046.0,0.07138161]
[1773188128916,0.00896567,70059.0,70046.0,0.07138161]
[1773188129211,0.00144,70060.0,70040.0,0.13137057]
[1773188129368,0.00144,70060.0,70040.0,0.07700747]
[1773188129369,0.00896567,70058.0,70040.0,0.07700747]
[1773188129594,0.00896567,70058.0,70040.0,0.07138814]
[1773188129782,0.00896567,70058.0,70040.0,6.6e-07]
[1773188129987,0.00896567,70056.0,70040.0,6.6e-07]
[1773188130532,0.07137045,70057.0,70037.0,0.0002]
[1773188130533,0.00885562,70049.0,70037.0,0.0002]
[1773188130733,0.00885562,70047.0,70037.0,0.07159041]
[1773188130931,0.00885562,70045.0,70037.0,0.0002]
[1773188131109,0.00144,70044.0,70037.0,0.0002]
[1773188131712,0.00885562,70045.0,70037.0,0.0002]
[1773188131920,0.00144,70044.0,70037.0,0.0002]
[1773188134506,0.00037323,70045.0,70037.0,0.07159008]
[1773188134689,0.00144,70043.0,70037.0,0.07159008]
[1773188135074,0.00144,70043.0,70037.0,0.0002]
[1773188138680,0.07282514,70043.0,70037.0,0.0002]
[1773188139233,0.00144,70043.0,70037.0,0.0002]
[1773188139413,0.00885562,70042.0,70037.0,0.0002]
[1773188140471,0.00885562,70040.0,70037.0,0.0002]
[1773188140894,0.00885562,70040.0,70030.0,0.07159708]
[1773188140895,0.00845562,70040.0,70027.0,0.0004851]
[1773188141106,0.0543631,70040.0,70027.0,0.0004851]
[1773188141337,0.00885562,70039.0,70027.0,0.0004851]
[1773188142458,0.07138981,70038.0,70027.0,0.0004851]
[1773188142632,0.01029562,70037.0,70027.0,0.0004851]
[1773188144623,0.0543631,70035.0,70020.0,0.0002]
[1773188144776,0.00885562,70029.0,70020.0,0.0002]
[1773188144975,0.00885562,70027.0,70020.0,0.0002]
[1773188145174,0.00144,70026.0,70020.0,0.0002]
[1773188145760,0.01029562,70026.0,70022.0,0.0002]
[1773188146846,0.07139981,70029.0,70022.0,0.0002]
[1773188146974,0.00144,70025.0,70022.0,0.0002]
[1773188150129,0.0096188,70025.0,70022.0,0.0002]
[1773188151436,0.00144,70025.0,70022.0,0.0002]
[1773188151640,0.08088507,70025.0,70022.0,0.0002]
[1773188152148,0.00144,70024.0,70022.0,0.0002]
[1773188152702,0.07139628,70032.0,70022.0,0.0002]
[1773188152915,0.07283695,70031.0,70022.0,0.0002]
[1773188153798,0.00144,70030.0,70022.0,0.0002]
[1773188156021,0.07139899,70029.0,70022.0,0.0002]
[1773188156727,0.00788269,70028.0,70022.0,0.0002]
[1773188156927,0.00788269,70028.0,70015.0,0.081413]
[1773188157514,0.00788269,70028.0,70015.0,0.01]
[1773188157720,0.00788269,70028.0,70013.0,0.0714153]
[1773188158168,0.00788269,70028.0,70012.0,0.00562]
[1773188158169,0.00788269,70026.0,70012.0,0.00562]
[1773188158377,0.07140103,70027.0,70000.0,0.00323]
[1773188158378,0.14715116,70021.0,70000.0,0.00323]
[1773188158583,0.00788269,70009.0,70000.0,0.00323]
[1773188158790,0.00788269,70007.0,70000.0,0.00323]
[1773188158983,0.00788269,70007.0,69995.0,0.0002851]
[1773188159183,0.00788269,70007.0,69995.0,0.07171861]
[1773188159323,0.00788269,70007.0,69997.0,0.07143133]
[1773188159515,0.00825569,70007.0,69997.0,0.07143133]
[1773188159710,0.00825569,70007.0,69995.0,0.07171861]
[1773188159711,0.00825569,70007.0,69995.0,0.07143351]
[1773188159924,0.00825569,70007.0,69996.0,0.07143251]
[1773188160126,0.00788269,70005.0,69995.0,0.07143351]
[1773188160857,0.00788269,70005.0,69988.0,0.0003603]
[1773188160858,0.00788269,70005.0,69991.0,0.07143763]
[1773188161432,0.00888269,70005.0,69991.0,0.07143763]
[1773188161881,0.00144,70004.0,69996.0,0.21289135]
[1773188162069,0.00144,70004.0,69997.0,0.07143156]
[1773188162206,0.00104,70004.0,69997.0,0.07143156]
[1773188162412,0.00104,70004.0,69998.0,0.0719105]
[1773188163014,0.00788269,70008.0,69998.0,0.0719105]
[1773188163015,0.07141811,70011.0,69998.0,0.0719105]
[1773188163223,0.07928678,70024.0,70000.0,0.0543631]
[1773188163425,0.00144,70023.0,70000.0,0.0543631]
[1773188163733,0.00144,70022.0,70000.0,0.0543631]
[1773188163937,0.07951678,70025.0,70010.0,0.0543631]
[1773188163938,0.00023,70025.0,70010.0,0.0543631]
[1773188164140,0.00144,70024.0,70010.0,0.0543631]
[1773188164468,0.00023,70025.0,70011.0,0.07141734]
[1773188164663,0.00144,70023.0,70011.0,0.07141734]
[1773188165036,0.07163364,70025.0,70011.0,0.07141734]
[1773188165037,0.00144,70022.0,70011.0,0.07141734]
[1773188166351,0.00144,70022.0,70004.0,0.07142409]
[1773188166757,0.00144,70022.0,70000.0,0.12599065]
[1773188166758,0.00788269,70019.0,70000.0,0.07162755]
[1773188166984,0.0543631,70020.0,70000.0,0.07162829]
[1773188166985,0.00788269,70009.0,70000.0,0.07162829]
[1773188167180,0.00788269,70009.0,70000.0,0.07162823]
[1773188167181,0.00144,70008.0,70000.0,0.07162823]
[1773188169210,0.00144,70008.0,70000.0,0.0002]
[1773188170910,0.07286053,70008.0,70000.0,0.0002]
[1773188171235,0.08074322,70008.0,70000.0,0.0002]
[1773188171478,0.00932269,70008.0,70000.0,0.0002]
[1773188171881,0.00144,70008.0,70000.0,0.0002]
[1773188173590,0.07142142,70007.0,70000.0,0.0002]
[1773188173782,0.00144,70006.0,70000.0,0.0002]
[1773188173984,0.00144,70005.0,69998.0,0.05913341]
[1773188174185,0.00144,70004.0,69998.0,0.05913341]
[1773188174416,0.00788269,70017.0,69998.0,0.05913341]
[1773188174680,0.00788269,70015.0,70000.0,0.0002]
[1773188177445,0.00144,70014.0,70000.0,0.0002]
[1773188177750,0.00144,70014.0,70000.0,0.00776227]
[1773188178157,0.00144,70013.0,70000.0,0.00776227]
[1773188178380,0.00144,70012.0,70001.0,0.00756227]
[1773188178550,0.00144,70011.0,70001.0,0.00756227]
[1773188178749,0.00144,70010.0,70001.0,0.00756227]
[1773188179674,0.07141938,70009.0,70000.0,0.0102]
[1773188179878,0.07141938,70009.0,70000.0,0.08162856]
[1773188180086,0.07140714,70021.0,70000.0,0.08162856]
[1773188180287,0.0068479,70019.0,70000.0,0.08162856]
[1773188181435,0.0068479,70019.0,70000.0,0.08185889]
[1773188181968,0.0068479,70019.0,70001.0,0.0002]
[1773188181969,0.07821435,70018.0,70001.0,0.0002]
[1773188182173,0.00022001,70011.0,70001.0,0.0002]
[1773188182587,0.00022001,70011.0,70005.0,0.0004]
[1773188184326,0.00022001,70011.0,70006.0,0.07142244]
[1773188187955,0.00022001,70019.0,70006.0,0.07142244]
[1773188188375,0.00144,70018.0,70006.0,0.07142244]
[1773188188793,0.00022001,70019.0,70006.0,0.07142244]
[1773188188993,0.00022001,70011.0,70006.0,0.07142244]
[1773188189167,0.00022001,70011.0,70006.0,0.07242244]
[1773188189406,0.00022001,70011.0,70006.0,0.07342244]
[1773188189607,0.00022001,70011.0,70006.0,0.07142244]
[1773188192580,0.00022001,70019.0,70006.0,0.07142244]
[1773188192819,0.00144,70017.0,70006.0,0.07142244]
[1773188193202,0.00144,70017.0,70006.0,0.08142244]
[1773188194395,0.00144,70019.0,70007.0,0.05440423]
[1773188195017,0.00144,70019.0,70008.0,0.0714204]
[1773188195621,0.00022001,70017.0,70008.0,0.0714204]
[1773188196201,0.00045001,70025.0,70008.0,0.0714204]
[1773188196401,0.00022001,70031.0,70008.0,0.0714204]
[1773188196402,0.00144,70028.0,70015.0,0.05440423]
[1773188196708,0.00144,70028.0,70011.0,0.00144]
[1773188196918,0.00144,70028.0,70021.0,0.07140714]
[1773188198086,0.00181323,70028.0,70021.0,0.07140714]
[1773188199472,0.00181323,70028.0,70021.0,0.08140714]
[1773188200416,0.00673292,70027.0,70006.0,0.100069]
[1773188200560,0.00673292,70027.0,70006.0,0.17149069]
[1773188201624,0.00672349,70025.0,70011.0,0.07141734]
[1773188203425,0.00144,70024.0,70012.0,0.00089767]
[1773188203627,0.00144,70024.0,70013.0,0.07228312]
[1773188203843,0.00144,70024.0,70014.0,0.00086782]
[1773188204000,0.00144,70025.0,70014.0,0.00086782]
[1773188204203,0.00144,70025.0,70015.0,0.00086782]
[1773188205032,0.00022001,70035.0,70015.0,0.05440423]
[1773188205242,0.07139412,70034.0,70020.0,0.06054591]
[1773188205441,0.07904471,70034.0,70020.0,0.00614168]
[1773188205637,0.00621059,70033.0,70021.0,0.07140714]
[1773188205841,0.00144,70032.0,70021.0,0.07140714]
[1773188206252,0.07139412,70034.0,70021.0,0.07140714]
[1773188206453,0.00144,70031.0,70021.0,0.07140714]
[1773188207655,0.00144,70031.0,70014.0,0.00037323]
[1773188207656,0.00712717,70028.0,70014.0,0.00037323]
[1773188208073,0.00712717,70028.0,70014.0,0.07178737]
[1773188208474,0.00712717,70028.0,70011.0,0.07141713]
[1773188208682,0.0085004,70028.0,70011.0,0.07141713]
[1773188208908,0.0075004,70028.0,70011.0,0.07141713]
[1773188209497,0.00144,70027.0,70011.0,0.07141713]
[1773188209699,0.00712295,70024.0,70007.0,0.07142142]
[1773188211781,0.00711549,70022.0,70007.0,0.07142142]
[1773188214182,0.00716354,70020.0,70007.0,0.07142142]
[1773188214380,0.00716354,70018.0,70007.0,0.05142456]
[1773188216992,0.00731352,70027.0,70008.0,0.05466918]
[1773188217196,0.00144,70026.0,70009.0,0.00026495]
[1773188217397,0.00731352,70026.0,70009.0,0.00026495]
[1773188217634,0.00144,70025.0,70009.0,0.00026495]
[1773188217801,0.00022001,70019.0,70009.0,0.00026495]
[1773188218001,0.00144,70025.0,70009.0,0.00026495]
[1773188218402,0.00144,70025.0,70011.0,0.00034156]
[1773188218651,0.00144,70025.0,70011.0,0.00178156]
[1773188220492,0.0016351,70025.0,70012.0,0.07141632]
[1773188220608,0.0016351,70025.0,70013.0,0.00012769]
[1773188221807,0.0016351,70025.0,70012.0,0.07141632]
[1773188222079,0.0016351,70025.0,70007.0,0.07142124]
[1773188222080,0.05440423,70022.0,70007.0,0.07142124]
[1773188222282,0.05440423,70022.0,69992.0,0.07143651]
[1773188222283,0.00751803,70016.0,69992.0,0.07143651]
[1773188222439,0.00751803,70016.0,69981.0,0.00018934]
[1773188222440,0.00758188,70008.0,69988.0,0.07144081]
[1773188222643,0.07141938,70009.0,69988.0,0.07144081]
[1773188222644,0.00758188,70006.0,69988.0,0.07144081]
[1773188222841,0.00758188,70002.0,69984.0,0.07706457]
[1773188223067,0.00758188,70002.0,69985.0,0.0716559]
[1773188223276,0.00758188,70002.0,69985.0,0.0002123]
[1773188223480,0.00758188,70002.0,69985.0,0.07165599]
[1773188223859,0.00758188,70000.0,69985.0,0.07165599]
[1773188224517,0.00144,69999.0,69986.0,5.702e-05]
[1773188225203,0.00144,69999.0,69985.0,0.07165599]
[1773188225402,0.00992738,69999.0,69985.0,0.07165599]
[1773188226026,0.00992738,69999.0,69985.0,0.07185599]
[1773188226226,0.00992738,69999.0,69986.0,0.01]
[1773188226431,0.00992738,69999.0,69987.0,0.07144183]
[1773188228022,0.00144,70000.0,69987.0,0.07159308]
[1773188230389,0.07286889,70000.0,69986.0,0.08144215]
[1773188230571,0.00859354,69999.0,69986.0,0.08144234]
[1773188230874,0.00864196,69997.0,69985.0,0.04688598]
[1773188231072,0.00864196,69997.0,69982.0,0.07144675]
[1773188232096,0.07142392,70005.0,69982.0,0.07144675]
[1773188232097,0.07142822,70001.0,69983.0,0.00038883]
[1773188232371,0.00144,70000.0,69983.0,0.00023834]
[1773188232548,0.01020301,70000.0,69983.0,0.00023834]
[1773188232731,0.00144,69999.0,69984.0,0.0714449]
[1773188232930,0.00144,69999.0,69985.0,0.00018967]
[1773188233154,0.01020301,69999.0,69985.0,0.00018967]
[1773188233357,0.01020301,69999.0,69984.0,0.0714449]
[1773188236442,0.07143061,69998.0,69984.0,0.0714449]
[1773188236769,0.00889801,69997.0,69984.0,0.0714449]
[1773188236988,0.000373,70002.0,69984.0,0.0714449]
[1773188236989,0.07183701,70025.0,69987.0,0.16335268]
[1773188237151,0.07180654,70022.0,69990.0,0.00704224]
[1773188237356,0.07180654,70022.0,69994.0,0.577201]
[1773188237357,0.00691069,70021.0,69994.0,0.577201]
[1773188237595,0.00691069,70021.0,69995.0,0.00704224]
[1773188237795,0.0004,70022.0,69992.0,0.14743396]
[1773188237796,0.0004,70022.0,70001.0,0.00704224]
[1773188237970,0.0004,70022.0,70000.0,0.16320223]
[1773188237971,1e-08,70028.0,70011.0,0.00704224]
[1773188238171,1e-08,70028.0,70010.0,0.16335268]
[1773188238172,1e-08,70028.0,70013.0,0.00704224]
[1773188238376,1e-08,70028.0,70013.0,0.00689182]
[1773188238573,0.00835069,70032.0,70015.0,0.00704224]
[1773188239108,0.00835069,70032.0,70015.0,0.00712822]
[1773188239303,0.00691069,70031.0,70015.0,8.598e-05]
[1773188241077,0.00971988,70029.0,70015.0,8.598e-05]
[1773188243156,0.07155063,70028.0,70015.0,8.598e-05]
[1773188243508,0.0098105,70027.0,70015.0,8.598e-05]
[1773188245610,0.00015062,70026.0,70015.0,8.598e-05]
[1773188247315,0.00159062,70026.0,70015.0,8.598e-05]
[1773188248458,0.00159062,70026.0,70013.0,0.07135071]
[1773188248659,0.00159062,70026.0,70013.0,0.07144723]
[1773188248857,0.00159062,70026.0,70013.0,9.652e-05]
[1773188249376,0.01117949,70026.0,70013.0,9.652e-05]
[1773188250761,0.08258162,70026.0,70013.0,9.652e-05]
[1773188251953,0.00950637,70025.0,70003.0,0.07142543]
[1773188252151,0.00950637,70025.0,70001.0,0.07162183]
[1773188252355,0.00950637,70025.0,70001.0,0.0717335]
[1773188252564,0.00950637,70025.0,70001.0,0.07173345]
[1773188252745,0.07140409,70024.0,70001.0,0.07173345]
[1773188252945,0.00942472,70023.0,70001.0,0.07173345]
[1773188254145,0.00144,70022.0,70001.0,0.07173345]
[1773188254313,0.00942472,70021.0,70001.0,0.07173345]
[1773188254926,0.00934425,70019.0,70005.0,0.0004]
[1773188256925,0.00926286,70017.0,70005.0,0.0004]
[1773188257120,0.00926286,70013.0,70005.0,0.0004]
[1773188258072,0.00926286,70013.0,70001.0,0.00050607]
[1773188258376,0.00926286,70013.0,70000.0,0.00043]
[1773188258547,0.00926286,70013.0,70000.0,0.0005418]
[1773188259151,0.00918185,70011.0,70000.0,0.0001118]
[1773188259350,0.00918185,70011.0,69993.0,0.07163561]
[1773188259537,0.00015062,70010.0,69993.0,0.07200861]
[1773188259738,0.00918185,70009.0,69993.0,0.07200861]
[1773188260160,0.00144,70011.0,69994.0,0.1433694]
[1773188260372,0.00918185,70010.0,69994.0,0.1433694]
[1773188260577,0.00918185,70010.0,69993.0,0.07200861]
[1773188260917,0.00918185,70010.0,69986.0,0.07164257]
[1773188260918,0.00893615,70010.0,69986.0,0.07164257]
[1773188261090,0.00899322,70008.0,69986.0,0.07164257]
[1773188261250,0.00899322,70008.0,69994.0,0.001]
[1773188262238,0.00899322,70006.0,69994.0,0.001]
[1773188262387,0.00899322,70006.0,69986.0,0.0002]
[1773188263211,0.07142346,70005.0,69986.0,0.0002]
[1773188263386,0.0090259,70004.0,69986.0,0.0002]
[1773188263876,0.0090259,70004.0,69987.0,0.00144]
[1773188264525,0.0090259,70004.0,69986.0,0.0002]
[1773188265522,0.00899322,70002.0,69986.0,0.0002]
[1773188265723,0.00899322,70002.0,69975.0,0.0716835]
[1773188265724,0.00899322,69999.0,69975.0,0.00023]
[1773188266022,0.00899322,69988.0,69968.0,0.0002946]
[1773188266225,0.00899322,69986.0,69961.0,0.07146827]
[1773188266899,0.00899322,69986.0,69963.0,0.07146589]
[1773188267280,0.00899322,69986.0,69972.0,0.0002]
[1773188267281,0.0093663,69986.0,69972.0,0.0002]
[1773188267586,0.00899322,69984.0,69972.0,0.0002]
[1773188268682,0.00999322,69984.0,69972.0,0.0002]
[1773188269503,0.0088152,69982.0,69972.0,0.0102]
[1773188271333,0.00144,69981.0,69972.0,0.0102]
[1773188271750,0.07144392,69985.0,69972.0,0.0102]
[1773188272038,0.00144,69992.0,69972.0,0.08309699]
[1773188272236,0.00144,69992.0,69972.0,0.08347007]
[1773188272593,0.00144,69992.0,69972.0,0.07347007]
[1773188273094,0.00144,69992.0,69972.0,0.07447007]
[1773188273296,0.00867899,69991.0,69972.0,0.07347007]
[1773188273501,0.00022001,69984.0,69973.0,0.00144]
[1773188273901,0.00022001,69984.0,69974.0,0.07145511]
[1773188274558,0.00144,69997.0,69974.0,0.07145511]
[1773188274808,0.00144,69996.0,69974.0,0.07145511]
[1773188275216,0.00022001,69998.0,69974.0,0.07145511]
[1773188275398,0.0078429,70006.0,69976.0,0.00836081]
[1773188276062,0.0078429,70006.0,69978.0,0.00836081]
[1773188276063,0.0078429,70004.0,69978.0,0.00836081]
[1773188276263,0.0078429,70004.0,69977.0,0.07289204]
[1773188277524,0.00144,70003.0,69977.0,0.07289204]
[1773188277681,0.0099768,70002.0,69977.0,0.07289204]
[1773188277887,0.00144,70002.0,69980.0,0.16318476]
[1773188278087,0.00144,70002.0,69981.0,0.07144796]
[1773188279592,0.00144,70002.0,69981.0,0.07244796]
[1773188280434,0.00993499,70002.0,69981.0,0.07344796]
[1773188280647,0.00993499,70002.0,69987.0,0.0004]
[1773188280869,0.0728673,70002.0,69988.0,0.00144]
[1773188281027,0.00842368,70001.0,69987.0,4.567e-05]
[1773188282121,0.07142816,70001.0,69987.0,4.567e-05]
[1773188282465,0.00842368,70000.0,69987.0,4.567e-05]
[1773188283034,0.00144,69999.0,69987.0,4.567e-05]
[1773188283230,0.0098367,69999.0,69987.0,4.567e-05]
[1773188283656,0.0083967,69999.0,69987.0,4.567e-05]
[1773188283981,0.00144,69998.0,69987.0,4.567e-05]
[1773188284120,0.0083967,69999.0,69987.0,4.567e-05]
[1773188284322,0.00144,69998.0,69987.0,4.567e-05]
[1773188284556,0.0083967,69999.0,69987.0,4.567e-05]
[1773188284864,0.00144,69998.0,69987.0,4.567e-05]
[1773188285414,0.00985364,69998.0,69987.0,4.567e-05]
[1773188288604,0.00985364,69998.0,69976.0,0.07145297]
[1773188288605,0.07143265,69996.0,69976.0,0.07145297]
[1773188288782,0.00844005,69995.0,69975.0,0.00023]
[1773188289182,0.16318476,69990.0,69965.0,0.07166375]
[1773188289441,0.00988005,69989.0,69965.0,0.07166375]
[1773188290142,0.00988005,69989.0,69973.0,0.0002]
[1773188290711,0.00845072,69987.0,69973.0,0.0002]
[1773188291730,0.00845072,69987.0,69961.0,0.07146838]
[1773188291935,0.00945072,69987.0,69961.0,0.07146838]
[1773188292346,0.01045072,69987.0,69961.0,0.07146838]
[1773188292718,0.00846364,69985.0,69961.0,0.07146838]
[1773188294894,0.00847169,69983.0,69961.0,0.07146838]
[1773188295091,0.00847169,69983.0,69962.0,0.1441795]
[1773188295950,0.00847169,69983.0,69961.0,0.07146838]
[1773188297489,0.00847756,69981.0,69961.0,0.07146838]
[1773188298293,0.00847756,69981.0,69961.0,0.21564788]
[1773188298497,0.00991756,69980.0,69961.0,0.21564788]
[1773188298659,0.00991756,69980.0,69962.0,0.0002]
[1773188299728,0.00848193,69978.0,69962.0,0.0002]
[1773188300304,0.00848193,69978.0,69962.0,0.000321]
[1773188301001,0.00848193,69978.0,69958.0,0.07146838]
[1773188301002,0.00848193,69978.0,69955.0,0.07167449]
[1773188301295,0.00848193,69978.0,69955.0,0.07167435]
[1773188301497,0.00846434,69978.0,69956.0,0.07709338]
[1773188301649,0.07145204,69977.0,69956.0,0.00562]
[1773188301849,0.00846434,69976.0,69956.0,0.07709328]
[1773188302068,0.00846434,69976.0,69955.0,0.0002]
[1773188302355,0.07145204,69977.0,69941.0,0.07148867]
[1773188302356,0.00846434,69969.0,69941.0,0.07148867]
[1773188302559,0.00852335,69967.0,69939.0,0.07149044]
[1773188302940,0.00852335,69967.0,69937.0,0.07149206]
[1773188303140,0.00023,69975.0,69947.0,0.07196227]
[1773188303390,0.00996335,69974.0,69947.0,0.07196227]
[1773188303678,0.07145613,69973.0,69947.0,0.00048]
[1773188303899,0.00852335,69972.0,69947.0,0.07196211]
[1773188305256,0.00952335,69972.0,69947.0,0.07196211]
[1773188305572,0.16349609,69970.0,69947.0,0.07196211]
[1773188305744,0.00864132,69967.0,69947.0,0.07196211]
[1773188305943,0.00864132,69965.0,69947.0,0.07196211]
[1773188306524,0.00864132,69965.0,69947.0,0.08196211]
[1773188306717,0.00864132,69965.0,69947.0,0.08216211]
[1773188307336,0.00864132,69965.0,69947.0,0.01068]